[Event "1000GM NY Winter IM-C 2024"]
[Site "New York"]
[Date "2024.01.12"]
[Round "1.7"]
[White "Goktepe, Derin"]
[Black "Kovalchuk, Igor"]
[Result "1-0"]
[ECO "E06"]
[WhiteElo "2187"]
[BlackElo "2030"]
[Annotator "TA"]
[PlyCount "125"]
[EventDate "2024.01.10"]
[EventType "swiss"]
[EventCountry "USA"]
[SourceTitle "playchess.com"]
[Source "ChessBase"]
[SourceQuality "1"]
[TimeControl "5400+30"]

{[%evp 16,125,13,13,15,17,12,9,68,83,66,68,102,85,107,58,125,62,132,128,158,165,193,172,185,177,167,114,102,0,159,64,147,143,154,43,39,51,47,29,46,50,54,0,0,0,0,0,0,-12,-12,-27,-39,-59,-58,-58,-59,-59,-58,-59,-58,-60,0,0,0,0,0,0,26,39,108,108,108,108,159,145,242,202,208,208,1095,1007,1169,1439,576,1290,1506,1381,703,17,29971,29972,29973,29974,29978,29979,29979,29979,29980,29981,29983,29983,29988,29986,29988,29989,29989,29990,29994,29994,29994,29994]} 1. d4 {[%emt 0:00:05]} d5 {[%emt 0:00:10]} 2. c4 {[%emt 0:00:14]} e6 {[%emt 0:00:22]} 3. Nf3 {[%emt 0:00:17]} Nf6 {[%emt 0:00:15]} 4. Nc3 {[%emt 0:00:22]} Be7 {[%emt 0:01:57]} 5. g3 {[%emt 0:00:26]} O-O {[%emt 0:00:34]} 6. Bg2 {[%emt 0:00:21]} dxc4 {[%emt 0:03:01]} 7. Ne5 {[%emt 0:00:47]} Nc6 {[%emt 0:01:02]} 8. Bxc6 {[%emt 0:01:42]} bxc6 {[%emt 0:00:09]} 9. Nxc6 {[%emt 0:00:42]} Qe8 {[%emt 0:00:11]} 10. Nxe7+ {[%emt 0:00:43]} Qxe7 {[%emt 0:00:08]} 11. Qa4 {[%emt 0:06:01]} e5 {[%emt 0:10:22]} (11... c5 $11 12. dxc5 Qxc5) 12. dxe5 $14 {[%emt 0:13:17]} Qxe5 {[%emt 0:00:55]} 13. Qxc4 {[%emt 0:02:34]} Bh3 {[%emt 0:04:18]} 14. Bf4 {[%emt 0:08:54]} Qh5 {[%emt 0:01:14]} 15. O-O-O {[%emt 0:07:48]} (15. Bxc7 Rac8 16. a3 Qf5 $17 (16... Ne8 17. Qd5 $14)) (15. f3 $16) 15... Be6 {[%emt 0:06:29]} (15... c6 $14) 16. Qd4 {[%emt 0:02:57]} (16. Qxc7 Ne4 17. g4 (17. Nxe4 $2 Rac8 $19) 17... Qg6 $15) (16. Qc6 $16) 16... c5 {[%emt 0:01:11]} (16... Qa5 $14) 17. Qd6 $16 {[%emt 0:07:31]} Ng4 {[%emt 0:21:24]} 18. Rhf1 $1 {[%emt 0:01:32]} Qxh2 {[%emt 0:03:47]} 19. f3 {[%emt 0:03:50]} (19. Qxc5 Rfc8 20. Bc7 Qh6+ 21. Kb1 Nf6 $14) 19... Nf2 {[%emt 0:10:21]} 20. g4 {[%emt 0:03:40]} Qh4 {[%emt 0:00:10]} 21. Bg3 {[%emt 0:02:35]} (21. Rd2 $1 $18 {[%cal Of4g3] And now Bg3! would win.} Rfd8 22. Qxc5) 21... Qh6+ $16 {[%emt 0:00:12]} 22. Bf4 {[%emt 0:00:27]} (22. Rd2 $142 $1 Nh3 23. Rfd1 (23. Qxc5 Bxa2 24. Qh5 Qxh5 $11)) 22... Qh4 $16 {[%emt 0:00:20]} 23. Rde1 {[%emt 0:02:51]} (23. Rd2 $1 $16 {[%cal Of4g3] Black must now prevent Bg3!} Rfd8 24. Qxc5) 23... Rfe8 {[%emt 0:16:47]} ({Black should try} 23... Nh3 $14) 24. Bg3 $16 {[%emt 0:12:18]} ({Don't play} 24. Be3 Nh3 $16) 24... Qh6+ {[%emt 0:00:19]} 25. Qf4 {[%emt 0:00:58]} ({Better is} 25. Qd2 $1 $16 {[%cal Rd2h6] Qxh6! is the strong threat.} Qxd2+ 26. Kxd2) 25... Qxf4+ $1 $14 {[%emt 0:02:51]} 26. Bxf4 {[%emt 0:00:04]} Nh3 {[%emt 0:00:08]} 27. Bd6 {[%emt 0:02:13]} h6 {[%emt 0:10:05]} 28. Rh1 {[%emt 0:02:18]} Ng5 {[%emt 0:00:15]} 29. Bxc5 {[%emt 0:00:59]} (29. f4 $14 Nh7 30. f5 (30. Bxc5 Bxg4 31. e4 Rec8 $15)) 29... Rac8 $11 {[%emt 0:00:19]} 30. Bxa7 {[%emt 0:04:26]} Bxa2 {[%emt 0:00:13]} 31. Kd2 {[%emt 0:01:49]} Bc4 {[%emt 0:01:07]} 32. f4 {[%emt 0:01:30]} Rcd8+ {[%emt 0:01:56]} 33. Kc2 {[%emt 0:00:57]} Ne4 {[%emt 0:00:21]} 34. Nxe4 {[%emt 0:02:41]} Rxe4 {[%emt 0:00:02]} 35. e3 {[%emt 0:00:29]} Bd3+ $1 {[%emt 0:00:32]} 36. Kd2 {[%emt 0:00:45]} Rb4 {[%emt 0:00:43]} 37. Bd4 {[%emt 0:00:40]} Be4 {[%emt 0:00:06]} 38. Kc3 {[%emt 0:00:46]} Rb7 {[%emt 0:00:13]} (38... Rdb8 $15 39. Kd2 Bxh1 40. Rxh1 Rxb2+ 41. Bxb2 Rxb2+ 42. Kd3 Rg2) 39. Rh5 $11 {[%emt 0:01:01]} f5 {[%emt 0:00:26]} 40. Rxf5 $1 {[%emt 0:03:42]} (40. gxf5 $2 {too greedy.} Rc8+ $19) 40... Bxf5 {[%emt 0:00:18]} 41. gxf5 {[%emt 0:00:01]} Rf7 {[%emt 0:00:58]} (41... Rf8 $5) 42. Rg1 {[%emt 0:00:08]} Rxf5 {[%emt 0:01:10]} (42... Kh7 $14) 43. Rxg7+ $16 {[%emt 0:00:25]} Kf8 {[%emt 0:00:08]} 44. Rh7 {[%emt 0:00:27]} h5 {[%emt 0:00:34] [#]} ({Black should play} 44... Rd6 45. Be5 Rc6+ 46. Kd4 Rb6) 45. Be5 $1 $16 {[%emt 0:00:41]} Rd1 {[%emt 0:01:32]} (45... Rd5 $16) 46. e4 {[%emt 0:00:32]} Rf7 {[%emt 0:00:18]} 47. Rxh5 {[%emt 0:00:40]} Rfd7 $2 {[%emt 0:01:11]} (47... Re1 48. Bd6+ Kg7) 48. Rh8+ $18 {[%emt 0:00:15]} Kf7 {[%emt 0:00:08]} 49. Rh7+ {[%emt 0:00:08]} Ke6 {[%emt 0:00:11]} 50. Rxd7 {[%emt 0:00:29]} Kxd7 {[%emt 0:00:26]} 51. Kc4 {[%emt 0:00:22]} Kc6 {[%emt 0:00:15]} 52. b4 $2 {[%emt 0:00:36]} (52. Bc3 $18 Rh1 53. f5) 52... Rc1+ $2 {[%emt 0:00:25][%mdl 8192] [#]} (52... Re1 $11) 53. Bc3 $1 {[%emt 0:00:17]} Rf1 {[%emt 0:00:29]} 54. b5+ {[%emt 0:01:08]} Kb6 {[%emt 0:00:17]} 55. Bd4+ {[%emt 0:00:15]} Ka5 {[%emt 0:00:10]} 56. b6 {[%emt 0:00:33]} Ka6 {[%emt 0:03:31]} 57. f5 {[%emt 0:00:11]} Kb7 {[%emt 0:00:11]} 58. Kd5 {[%emt 0:00:09]} Kc8 {[%emt 0:00:09]} 59. f6 {[%emt 0:00:15]} Kd7 {[%emt 0:00:25]} 60. e5 {[%emt 0:00:18]} Re1 {[%emt 0:00:42]} 61. f7 {[%emt 0:00:37]} Re2 {[%emt 0:00:10]} 62. e6+ {[%emt 0:01:17]} Rxe6 {[%emt 0:02:57]} 63. f8=N+ {[%emt 0:00:30]} 1-0

[Event "1000GM NY Winter IM-C 2024"]
[Site "New York"]
[Date "2024.01.12"]
[Round "1.8"]
[White "Chabris, Christopher"]
[Black "Bonin, Jay"]
[Result "1/2-1/2"]
[ECO "B31"]
[WhiteElo "2078"]
[BlackElo "2166"]
[Annotator "TA"]
[PlyCount "62"]
[EventDate "2024.01.10"]
[EventType "swiss"]
[EventCountry "USA"]
[SourceTitle "playchess.com"]
[Source "ChessBase"]
[SourceQuality "1"]
[TimeControl "5400+30"]

{[%evp 10,62,49,47,36,40,45,37,36,35,48,25,35,26,37,18,21,18,19,20,27,18,16,7,10,6,5,0,14,0,14,13,14,10,0,7,5,-16,28,0,0,-4,0,-13,0,0,0,0,29,27,26,32,32,30,35]} 1. e4 {[%emt 0:00:04]} c5 {[%emt 0:00:24]} 2. Nf3 {[%emt 0:00:05]} Nc6 {[%emt 0:00:05]} 3. Bb5 {[%emt 0:00:11]} g6 {[%emt 0:00:06]} 4. Bxc6 {[%emt 0:00:17]} dxc6 {[%emt 0:00:05]} 5. d3 {[%emt 0:00:13]} Bg4 {[%emt 0:00:09]} 6. Nbd2 {[%emt 0:00:27]} Bg7 {[%emt 0:00:09]} 7. h3 {[%emt 0:00:12]} Bxf3 {[%emt 0:00:05]} 8. Nxf3 {[%emt 0:00:14]} Nf6 {[%emt 0:00:15] White is slightly better.} 9. Qe2 {[%emt 0:00:51]} O-O {[%emt 0:00:29]} 10. O-O {[%emt 0:00:56]} Ne8 {[%emt 0:01:27]} 11. Be3 {[%emt 0:01:29]} b6 {[%emt 0:00:08]} 12. c3 {[%emt 0:01:25]} e5 {[%emt 0:00:26]} 13. b4 {[%emt 0:05:20]} cxb4 {[%emt 0:00:16]} 14. cxb4 {[%emt 0:00:12]} Nc7 {[%emt 0:00:45]} 15. Qc2 {[%emt 0:08:57]} Qd6 {[%emt 0:01:50]} 16. a3 {[%emt 0:07:31][%cal Ba2a3,Ba3a4,Ba4a5][%mdl 32]} Ne6 {[%emt 0:01:09]} 17. Rac1 {[%emt 0:06:00]} Rac8 {[%emt 0:00:45]} 18. Qc4 {[%emt 0:02:36]} Rfd8 {[%emt 0:00:31]} 19. Rfd1 {[%emt 0:00:50]} h6 {[%emt 0:02:00]} 20. a4 {[%emt 0:03:51]} Rc7 {[%emt 0:01:54]} 21. h4 {[%emt 0:07:13][%cal Bh3h4,Bh4h5][%mdl 32]} c5 {[%emt 0:13:28]} 22. bxc5 {[%emt 0:08:28]} Nxc5 {[%emt 0:02:27]} 23. h5 {[%emt 0:03:46]} g5 {[%emt 0:01:32]} 24. Qb5 {[%emt 0:07:42]} Ne6 {[%emt 0:02:48][%cal Bc5e6,Be6f4,Bf4d3][%mdl 32]} 25. a5 {[%emt 0:05:06]} Rxc1 {[%emt 0:08:02]} 26. Rxc1 {[%emt 0:03:14][%cal Ra5b6,Bd1c1,Bc1c6,Bc6b6][%mdl 32]} Nf4 {[%emt 0:04:37] [#] ...Ne2+ is the strong threat.} 27. Rc6 {[%emt 0:07:48]} ({Much worse is} 27. axb6 Ne2+ (27... Nxd3 $2 {too greedy.} 28. Rc6 $18) 28. Kh2 Nxc1 (28... Qxd3 $2 {perishes.} 29. Qxd3 Rxd3 30. bxa7 $18) 29. bxa7 Nxd3 $17) 27... Qxd3 {[%emt 0:05:33]} 28. Qxd3 {[%emt 0:00:27]} Nxd3 {[%emt 0:00:27]} (28... Rxd3 $5 29. axb6 axb6 $11) 29. axb6 {[%emt 0:00:54]} axb6 {[%emt 0:00:08]} 30. Rxb6 {[%emt 0:00:31]} Nf4 {[%emt 0:01:38]} 31. g4 {[%emt 0:19:10]} Ra8 {[%emt 0:52:22] Weighted Error Value: White=0.07 (flawless) /Black=0.06 (flawless) .  Inaccurate:     	White=1     	Black=2      OK:         	White=7     	Black=11     Best:        	---       	Black=1} 1/2-1/2

[Event "1000GM NY Winter IM-C 2024"]
[Site "New York"]
[Date "2024.01.12"]
[Round "1.9"]
[White "Yoo, Eugene"]
[Black "Mede, Istvan"]
[Result "0-1"]
[ECO "E61"]
[WhiteElo "2168"]
[BlackElo "2187"]
[Annotator "TA"]
[PlyCount "74"]
[EventDate "2024.01.10"]
[EventType "swiss"]
[EventCountry "USA"]
[SourceTitle "playchess.com"]
[Source "ChessBase"]
[SourceQuality "1"]
[TimeControl "5400+30"]

{[%evp 13,74,12,16,10,22,13,28,12,43,8,31,34,82,40,95,-4,0,-39,0,0,62,-64,-64,-60,-59,-68,-70,-58,-58,-63,-58,-126,-150,-177,-172,-178,-174,-165,-183,-170,-84,-72,-71,-236,-235,-275,-50,-436,-484,-467,-467,-571,-569,-1214,-1188,-29974,-29971,-2789,-1454,-29987,-29988,-29990,-29991]} 1. c4 {[%emt 0:02:21]} g6 {[%emt 0:00:05]} 2. g3 {[%emt 0:00:08]} Bg7 {[%emt 0:00:05]} 3. Bg2 {[%emt 0:00:04]} c5 {[%emt 0:00:06]} 4. Nc3 {[%emt 0:02:36]} Nc6 {[%emt 0:00:05]} 5. e3 {[%emt 0:02:06]} d6 {[%emt 0:00:25]} 6. Nge2 {[%emt 0:00:27]} Nf6 {[%emt 0:08:38]} 7. d4 {[%emt 0:02:48]} O-O {[%emt 0:01:34]} 8. h3 {[%emt 0:01:51]} cxd4 {[%emt 0:00:37]} 9. exd4 {[%emt 0:00:02]} Bd7 {[%emt 0:00:13]} 10. O-O {[%emt 0:01:07] Weiß hat minimalen Vorteil.} Rc8 {[%emt 0:04:58]} 11. Be3 {[%emt 0:04:49]} a6 {[%emt 0:02:28]} 12. b3 {[%emt 0:07:07]} Qa5 {[%emt 0:05:06]} (12... e6 $14 {scheint genauer.}) 13. a3 {[%emt 0:09:26]} Qd8 {[%emt 0:09:54]} ({Besser ist} 13... e6 $14) 14. b4 {[%emt 0:17:05]} (14. d5 $1 $16 {[%cal Rd5c6]}) 14... e5 $11 {[%emt 0:08:22]} 15. d5 {[%emt 0:19:08]} Ne7 {[%emt 0:00:09]} 16. c5 {[%emt 0:02:30]} Nf5 {[%emt 0:00:28]} (16... dxc5 $11 17. Bxc5 b6) 17. Qd2 {[%emt 0:00:50]} (17. Bg5 $1 $14) 17... Nxe3 {[%emt 0:00:32]} 18. Qxe3 {[%emt 0:00:01]} dxc5 $1 {[%emt 0:02:49]} 19. bxc5 {[%emt 0:02:09][%cal Og3g4]} Qa5 {[%emt 0:00:11]} 20. Rab1 {[%emt 0:02:43]} Qxa3 {[%emt 0:11:27]} 21. Rxb7 {[%emt 0:07:56] Schwarz muss nun c6 beachten.} Rxc5 {[%emt 0:04:49]} 22. Ne4 {[%emt 0:02:30]} (22. Rfb1 $15) 22... Qxe3 $17 {[%emt 0:00:06]} 23. fxe3 {[%emt 0:02:14]} Nxe4 {[%emt 0:01:48]} (23... Rxd5 $2 24. Nxf6+ Bxf6 25. Bxd5 $18) 24. Rxd7 {[%emt 0:00:01]} Nd2 {[%emt 0:04:03]} 25. Ra1 {[%emt 0:01:13]} a5 {[%emt 0:02:01]} 26. e4 {[%emt 0:04:11]} f5 {[%emt 0:01:39]} (26... Ra8 $19 {und Schwarz behält klar die Oberhand. Droht stark ...Bf8.} 27. Ra2 Nc4 (27... Bh6 $2 28. Rb7 $19)) 27. exf5 {[%emt 0:00:44]} gxf5 {[%emt 0:00:30]} 28. Ra7 $2 {[%emt 0:01:06] [#]} (28. d6 $17) 28... f4 $1 $19 {[%emt 0:13:49]} (28... e4 29. R1xa5 Rc2 (29... Rxa5 30. Rxa5 Be5 31. d6 $15) 30. d6 $11) 29. Ra2 {[%emt 0:00:01]} Nb3 {[%emt 0:00:08]} (29... f3 $19 30. Rxd2 (30. R7xa5 $2 {zu gefräßig.} fxe2 31. Rxc5 e1=Q+ $19) 30... Bh6) 30. Rb7 $2 {[%emt 0:01:58][%mdl 8192]} (30. gxf4 $15 exf4 31. Bf3) 30... Nc1 {[%emt 0:00:58]} 31. Nxc1 {[%emt 0:01:36]} Rxc1+ {[%emt 0:00:01]} 32. Kf2 {[%emt 0:01:03] [#]} f3 $1 {[%emt 0:01:26][%mdl 512] Zielt auf ...e4 ab.} 33. Bxf3 {[%emt 0:00:24][%cal Of2g2]} (33. Re7 Bf6) 33... e4 {[%emt 0:00:06]} 34. Ra3 {[%emt 0:00:17]} Rc2+ {[%emt 0:00:45]} ({Schwächer ist} 34... Rxf3+ 35. Rxf3 exf3 36. Kxf3 $17) 35. Kf1 {[%emt 0:00:15]} exf3 {[%emt 0:00:27]} 36. Rd3 {[%emt 0:01:34]} Rh2 {[%emt 0:06:50]} 37. Kg1 {[%emt 0:01:14]} f2+ {[%emt 0:00:17] Gewichteter Fehlerwert: Weiß=1.09/Schwarz=0.38.  Verlustzug:     	Weiß=2     	---        Gewinn verpasst:   	---       	Schwarz=1     Fehler:       	Weiß=3     	Schwarz=4     Ungenau:       	Weiß=5     	Schwarz=2     OK:         	Weiß=6     	Schwarz=6     Bester:       	Weiß=1     	Schwarz=3     Stark:        	---       	Schwarz=2     Brilliant:      	---       	Schwarz=1} 0-1

[Event "1000GM NY Winter IM-C 2024"]
[Site "New York"]
[Date "2024.01.12"]
[Round "2.1"]
[White "Mede, Istvan"]
[Black "Goktepe, Derin"]
[Result "1/2-1/2"]
[ECO "C47"]
[WhiteElo "2187"]
[BlackElo "2187"]
[Annotator "TA"]
[PlyCount "44"]
[EventDate "2024.01.10"]
[EventType "swiss"]
[EventCountry "USA"]
[SourceTitle "playchess.com"]
[Source "ChessBase"]
[SourceQuality "1"]
[TimeControl "5400+30"]

{[%evp 17,44,0,0,0,0,0,0,0,10,16,29,26,15,0,0,0,21,0,0,7,17,0,0,-14,0,-5,0,-13,-10]} 1. e4 {[%emt 0:01:57]} e5 {[%emt 0:00:17]} 2. Nf3 {[%emt 0:00:05]} Nc6 {[%emt 0:00:25]} 3. Nc3 {[%emt 0:00:05]} Nf6 {[%emt 0:00:33]} 4. d4 {[%emt 0:00:05]} exd4 {[%emt 0:00:38]} 5. Nxd4 {[%emt 0:00:04]} Bb4 {[%emt 0:01:02]} 6. Nxc6 {[%emt 0:00:08]} bxc6 {[%emt 0:00:23]} 7. Bd3 {[%emt 0:00:05]} d5 {[%emt 0:01:39]} 8. exd5 {[%emt 0:00:04]} cxd5 {[%emt 0:00:38]} 9. O-O {[%emt 0:00:05]} O-O {[%emt 0:01:00]} 10. h3 {[%emt 0:00:17]} c6 {[%emt 0:04:23]} 11. Qf3 {[%emt 0:00:19]} Bd6 {[%emt 0:04:13]} 12. Bf4 {[%emt 0:00:06]} Rb8 {[%emt 0:06:24]} 13. b3 {[%emt 0:00:29]} Qc7 {[%emt 0:00:47]} 14. Bxd6 {[%emt 0:02:22]} Qxd6 {[%emt 0:00:19]} 15. Qg3 {[%emt 0:00:18] Die Stellung ist ausgeglichen.} Qxg3 {[%emt 0:01:51]} 16. fxg3 {[%emt 0:00:03]} Re8 {[%emt 0:01:34]} 17. Rfe1 {[%emt 0:00:11]} Rxe1+ {[%emt 0:02:24]} 18. Rxe1 {[%emt 0:00:03]} Be6 {[%emt 0:00:53]} 19. Na4 {[%emt 0:00:18]} Nd7 {[%emt 0:01:07]} 20. Kf2 {[%emt 0:00:05]} h6 {[%emt 0:00:37]} 21. Ke3 {[%emt 0:04:05]} c5 {[%emt 0:02:59]} 22. c3 {[%emt 0:02:57]} Kf8 {[%emt 0:05:02] Ein ziemlich ruhiges Remis.   Gewichteter Fehlerwert: Weiß=0.07 (makellos) /Schwarz=0.04 (makellos) .  OK:         	Weiß=3     	Schwarz=4} 1/2-1/2

[Event "1000GM NY Winter IM-C 2024"]
[Site "New York"]
[Date "2024.01.12"]
[Round "2.2"]
[White "Bonin, Jay"]
[Black "Yoo, Eugene"]
[Result "0-1"]
[ECO "D39"]
[WhiteElo "2166"]
[BlackElo "2168"]
[Annotator "TA"]
[PlyCount "66"]
[EventDate "2024.01.10"]
[EventType "swiss"]
[EventCountry "USA"]
[SourceTitle "playchess.com"]
[Source "ChessBase"]
[SourceQuality "1"]
[TimeControl "5400+30"]

{[%evp 11,66,0,0,-8,-23,-25,-37,-74,-84,-120,-106,-104,-97,-106,-109,-129,-113,-139,-95,-116,-100,-108,-111,-143,-128,-153,-134,-135,-136,-135,-18,-62,-41,-11,-6,-79,0,0,0,0,0,0,0,0,0,-54,-66,-134,-93,-139,-64,-169,-198,-645,-649,-846,-841]} 1. d4 {[%emt 0:00:06]} Nf6 {[%emt 0:02:49]} 2. Nf3 {[%emt 0:00:08]} e6 {[%emt 0:00:04]} 3. c4 {[%emt 0:00:04]} d5 {[%emt 0:00:12]} 4. Nc3 {[%emt 0:00:06]} Bb4 {[%emt 0:00:35]} 5. Qa4+ {[%emt 0:00:07]} Nc6 {[%emt 0:00:13]} 6. Bg5 {[%emt 0:00:04]} dxc4 {[%emt 0:00:29]} 7. e4 {[%emt 0:00:20]} Bd7 {[%emt 0:00:31][%cal Oc6d4] And now ...Nxd4! would win.} 8. Qc2 {[%emt 0:01:54][%cal Oe4e5]} ({Reject} 8. Bxc4 Nxd4 (8... Bxc3+ 9. bxc3 Nxd4 10. Qd1 $17) 9. Qd1 Nxf3+ 10. Qxf3 h6 $17) 8... h6 {[%emt 0:00:34]} 9. Bxf6 {[%emt 0:00:23] Black is slightly better.} Qxf6 {[%emt 0:00:17]} 10. e5 {[%emt 0:05:28]} Qf4 {[%emt 0:00:17]} 11. Rd1 {[%emt 0:00:26]} b5 {[%emt 0:06:37]} 12. Be2 {[%emt 0:01:32]} Ne7 {[%emt 0:02:41] Black is more active.} 13. O-O {[%emt 0:01:45]} Qf5 {[%emt 0:06:20]} 14. Qc1 {[%emt 0:03:10]} Nd5 {[%emt 0:03:26] Threatens to win with ...Bxc3.} 15. g3 {[%emt 0:02:24]} Nxc3 {[%emt 0:07:56]} 16. bxc3 {[%emt 0:00:05][%cal Of3h4] [#] Hoping for Nh4!} Be7 {[%emt 0:00:06]} 17. d5 {[%emt 0:08:49]} exd5 {[%emt 0:06:54]} 18. Rxd5 {[%emt 0:01:03]} Qe6 {[%emt 0:09:12]} 19. Rdd1 {[%emt 0:04:48][%cal Oa2a4]} c5 {[%emt 0:02:43]} 20. Nd2 {[%emt 0:07:47]} g5 {[%emt 0:11:07]} (20... Bc6 $17 21. f4 O-O) 21. Bf3 {[%emt 0:06:05]} Bc6 {[%emt 0:04:23][%cal Oc6f3]} 22. Bxc6+ {[%emt 0:15:16]} Qxc6 {[%emt 0:00:02]} 23. Qb1 {[%emt 0:00:49] [#]} (23. a4 $11 {keeps the balance.}) 23... Rd8 {[%emt 0:03:40]} (23... O-O $1 $17) 24. Ne4 $11 {[%emt 0:02:53]} O-O {[%emt 0:01:32]} 25. f4 {[%emt 0:04:57]} gxf4 {[%emt 0:05:40]} 26. Rxf4 {[%emt 0:03:50]} Rxd1+ {[%emt 0:09:32]} 27. Qxd1 {[%emt 0:00:09]} Rd8 {[%emt 0:00:16] Prevents Nd6.} 28. Qh5 {[%emt 0:00:38]} (28. Nd6 $1 $11 Bxd6 29. Qg4+ Kf8 30. Qe6) 28... Qg6 $36 {[%emt 0:01:32][%mdl 2048] Black is more active.} 29. Qe2 {[%emt 0:06:31]} (29. Rg4 $15 Bg5 30. Qxg6+ fxg6 31. Nxg5 hxg5 32. e6) 29... h5 $17 {[%emt 0:02:07]} 30. Nf6+ {[%emt 0:09:03]} (30. a4 $142) 30... Kf8 {[%emt 0:04:42]} (30... Bxf6 $17 31. exf6 Kh7) 31. Ne4 {[%emt 0:09:24]} (31. Kg2 $1 $15) 31... Rd5 $19 {[%emt 0:00:57]} 32. a4 $2 {[%emt 0:02:06]} (32. Nf6 Rd3 33. Qe4) 32... Rxe5 {[%emt 0:01:12] White must now prevent ...Bg5.} (32... bxa4 33. Nf6 Rd3 34. Rxc4 $17) 33. axb5 {[%emt 0:01:06]} Bg5 {[%emt 0:01:27] Weighted Error Value: White=0.53/Black=0.15 (very precise) .  Mistake:       	White=6     	Black=3      Inaccurate:     	White=4     	Black=1      OK:         	White=3     	Black=9      Best:        	White=1     	Black=3} 0-1

[Event "1000GM NY Winter IM-C 2024"]
[Site "New York"]
[Date "2024.01.12"]
[Round "2.3"]
[White "Yudasin, Leonid"]
[Black "Chabris, Christopher"]
[Result "1-0"]
[ECO "C77"]
[WhiteElo "2353"]
[BlackElo "2078"]
[Annotator "RC"]
[PlyCount "64"]
[EventDate "2024.01.10"]
[EventType "swiss"]
[EventCountry "USA"]
[SourceTitle "playchess.com"]
[Source "ChessBase"]
[SourceQuality "1"]
[TimeControl "5400+30"]

1. e4 {[%emt 0:00:03]} e5 {[%emt 0:00:12]} 2. Nf3 {[%emt 0:00:10]} Nc6 {[%emt 0:00:05]} 3. Bb5 {[%emt 0:00:08]} a6 {[%emt 0:00:14]} 4. Ba4 {[%emt 0:00:06]} Nf6 {[%emt 0:00:05]} 5. d3 {[%emt 0:00:11]} d6 {[%emt 0:00:28]} 6. c4 {[%emt 0:01:06]} g6 {[%emt 0:02:53]} 7. d4 {[%emt 0:09:34]} exd4 {[%emt 0:03:45]} 8. Nxd4 {[%emt 0:02:06]} Bd7 {[%emt 0:00:29]} 9. O-O {[%emt 0:04:22]} Bg7 {[%emt 0:08:51]} 10. Nxc6 {[%emt 0:02:53]} Bxc6 {[%emt 0:02:24]} 11. Bxc6+ {[%emt 0:01:00]} bxc6 {[%emt 0:00:08]} 12. Qa4 {[%emt 0:02:18]} Qd7 {[%emt 0:03:09]} 13. c5 {[%emt 0:00:24]} O-O {[%emt 0:02:47]} 14. cxd6 {[%emt 0:03:25]} cxd6 {[%emt 0:03:25]} 15. Nc3 {[%emt 0:00:28]} Ng4 {[%emt 0:08:01]} 16. Bf4 {[%emt 0:04:36]} Be5 {[%emt 0:07:13]} 17. Bxe5 {[%emt 0:00:54]} Nxe5 {[%emt 0:01:14]} 18. Rad1 {[%emt 0:00:32]} f5 {[%emt 0:19:24]} 19. Qd4 {[%emt 0:01:11]} Rad8 {[%emt 0:02:11]} 20. f4 {[%emt 0:01:15]} Nf7 {[%emt 0:03:49]} 21. exf5 {[%emt 0:00:50]} c5 {[%emt 0:04:01]} 22. Qc4 {[%emt 0:03:04]} Qxf5 {[%emt 0:01:42]} 23. Nd5 {[%emt 0:00:23]} Rfe8 {[%emt 0:01:56]} 24. Qxa6 {[%emt 0:00:28]} Re4 {[%emt 0:01:45]} 25. Qd3 {[%emt 0:01:33]} Rde8 {[%emt 0:02:25]} 26. h3 {[%emt 0:00:59]} h5 {[%emt 0:01:51]} 27. b3 {[%emt 0:01:44]} Kf8 {[%emt 0:00:36]} 28. a4 {[%emt 0:00:32]} Re2 {[%emt 0:02:57]} 29. Qxf5 {[%emt 0:00:49]} gxf5 {[%emt 0:00:09]} 30. Rf2 {[%emt 0:00:23]} h4 {[%emt 0:01:22]} 31. Rxe2 {[%emt 0:00:45]} Re3 {[%emt 0:16:29]} 32. Rf2 Re2 {[%emt 0:00:00]} 1-0

[Event "1000GM NY Winter IM-C 2024"]
[Site "New York"]
[Date "2024.01.12"]
[Round "2.4"]
[White "Hajnal, Zoltan"]
[Black "Ho, Carter"]
[Result "1-0"]
[ECO "B33"]
[WhiteElo "2383"]
[BlackElo "2180"]
[Annotator "RC"]
[PlyCount "69"]
[EventDate "2024.01.10"]
[EventType "swiss"]
[EventCountry "USA"]
[SourceTitle "playchess.com"]
[Source "ChessBase"]
[SourceQuality "1"]
[TimeControl "5400+30"]

1. e4 {[%emt 0:07:06]} c5 {[%emt 0:01:30]} 2. Nf3 {[%emt 0:00:03]} e6 {[%emt 0:00:06]} 3. d4 {[%emt 0:00:17]} cxd4 {[%emt 0:00:05]} 4. Nxd4 {[%emt 0:00:04]} Nf6 {[%emt 0:00:07]} 5. Nc3 {[%emt 0:00:04]} Nc6 {[%emt 0:00:04]} 6. Ndb5 {[%emt 0:00:19]} d6 {[%emt 0:00:11]} 7. Bf4 {[%emt 0:00:05]} e5 {[%emt 0:00:04]} 8. Bg5 {[%emt 0:00:04]} a6 {[%emt 0:00:03]} 9. Na3 {[%emt 0:00:07]} b5 {[%emt 0:00:03]} 10. Nd5 {[%emt 0:00:25]} Be7 {[%emt 0:00:11]} 11. Bxf6 {[%emt 0:00:18]} Bxf6 {[%emt 0:00:05]} 12. c3 {[%emt 0:00:36]} O-O {[%emt 0:00:09]} 13. g3 {[%emt 0:00:02]} Bg5 {[%emt 0:00:12]} 14. Bg2 {[%emt 0:00:14]} Ne7 {[%emt 0:02:02]} 15. O-O {[%emt 0:00:20]} Be6 {[%emt 0:10:36]} 16. Nxe7+ {[%emt 0:01:17]} Qxe7 {[%emt 0:04:06]} 17. Nc2 {[%emt 0:06:59]} Rfd8 {[%emt 0:07:10]} 18. f4 {[%emt 0:03:18]} Bh6 {[%emt 0:10:27]} 19. Ne3 {[%emt 0:13:44]} Qa7 {[%emt 0:02:26]} 20. Qd2 {[%emt 0:00:27]} g5 {[%emt 0:17:19]} 21. f5 {[%emt 0:05:35]} g4 {[%emt 0:00:59]} 22. Rfe1 {[%emt 0:00:42]} Bc8 {[%emt 0:03:45]} 23. Qf2 {[%emt 0:02:51]} Bxe3 {[%emt 0:01:16]} 24. Rxe3 {[%emt 0:00:30]} Bb7 {[%emt 0:01:05]} 25. Rd1 {[%emt 0:01:29]} Rd7 {[%emt 0:03:39]} 26. Kf1 {[%emt 0:08:43]} f6 {[%emt 0:01:55]} 27. Qe2 {[%emt 0:02:38]} h5 {[%emt 0:04:21]} 28. Red3 {[%emt 0:00:25]} Rad8 {[%emt 0:00:26]} 29. h3 {[%emt 0:03:36]} gxh3 {[%emt 0:04:26]} 30. Bxh3 {[%emt 0:00:30]} Qa8 {[%emt 0:00:08]} 31. Bg2 {[%emt 0:00:46]} Rg7 {[%emt 0:03:49]} 32. Rxd6 {[%emt 0:02:52]} Rf8 {[%emt 0:00:31]} 33. Rd7 {[%emt 0:13:27]} Rg4 {[%emt 0:05:04]} 34. Qd2 {[%emt 0:02:04]} Rg7 {[%emt 0:06:02]} 35. Qh6 {[%emt 0:00:39]} 1-0